Cogmind - Beta 14 *** ADVENTURER MODE // 2024.09.05 @ 05:37:02 Player: KURIIRI Result: Escaped! Performance ------------- Evolutions (9) 4500 Regions Visited (27) 5400 Robots Destroyed (500) 2500 Value Destroyed (20931) 20931 Prototype IDs (92) 1840 Alien Tech Used (1) 200 Bonus (12815) 12815 TOTAL SCORE: 48186 Bonus ------- Triggered High Security 1000 High Alert Combat Kills 3200 Follower Combat Kills 558 Aligned with FarCom 300 Met Imprinter 300 Met Zhirov 300 Met Warlord at Base 500 MAIN.C Attacked Warlord 500 Warlord Defense Kills 1208 Met Warlord at Research 2000 Win 3000 Friendly Fire -51 Cogmind --------- Core Integrity 1512/1600 Matter 175/300 Energy 224/240 System Corruption 0% Temperature Warm (138) Movement Flying (18) Location To Epsilon Eridani Parts ------- > --- POWER (2) -------- Micro Antimatter Reactor Light Quantum Reactor > --- PROPULSION (9) --- Field Propulsion Array Diametric Drive Diametric Drive Q-thruster Q-thruster Cooled Impulse Thruster Improved Q-thruster > --- UTILITY (12) ----- Medium Storage Unit Advanced Weight Redist. System Advanced Targeting Computer Advanced Reaction Control System Layered Medium Armor Plating Advanced Hacking Suite Advanced System Shield Experimental System Shield > --- WEAPON (2) ------- Point Singularity Launcher Plasma Sword > --- INVENTORY (10) --- Light Quantum Reactor Diametric Drive Impulse Thruster Array Advanced Heat Sink Improved System Restoration Module Trap Reconfigurator Improved Recalibrator Vortex Shotgun (42) Compact Linear Accelerator Peak State ------------ > --- POWER ------------ Micro Antimatter Reactor Micro Antimatter Reactor > --- PROPULSION ------- Field Propulsion Array Diametric Drive Diametric Drive Diametric Drive Diametric Drive Diametric Drive Diametric Drive > --- UTILITY ---------- Advanced Heat Sink Medium Storage Unit Advanced Weight Redist. System Advanced Target Analyzer Advanced Target Analyzer Hardened Medium Armor Plating Improved Medium Armor Plating Centrium Light Armor Plating Advanced Hacking Suite Advanced System Shield Experimental System Shield > --- WEAPON ----------- Point Singularity Launcher Vortex Lance > --- INVENTORY -------- Quantum Reactor Light Quantum Reactor Cooled Nuclear Pulse Thruster Improved System Restoration Module Trap Reconfigurator Improved Recalibrator Vortex Shotgun Compact Linear Accelerator Compact Tesla Bomb Launcher Plasma Sword [Rating: 163] Favorites ----------- Power Micro Fission Core Engine Light Ion Engine Power Core Micro Fission Core Reactor Micro Antimatter Reactor Propulsion Cooled VTOL Module Leg Carbon-fiber Leg Hover Unit Linear Gravjet Flight Unit Cooled VTOL Module Utility Medium Storage Unit Device Advanced Weight Redist. System Storage Medium Storage Unit Processor Advanced Targeting Computer Hackware Advanced Hacking Suite Protection Hardened Medium Armor Plating Weapon Plasma Sword Energy Gun Enhanced Force Rifle Energy Cannon EM Pulse Cannon Ballistic Gun Gauss Rifle Ballistic Cannon Mass Driver Launcher Heavy Proton Missile Launcher Special Weapon Remote Datajack Impact Weapon Power Maul Slashing Weapon Plasma Sword Piercing Weapon CR-A16's Pointy Stick Special Melee Weapon Improved Datajack Build | -11 -10 -10 -10 -9 -8 -7 -7 -7 -7 -6 -6 -6 -5 -5 -5 -5 -5 -5 -4 -4 -4 -4 -4 -3 -3 -2 -1 ------- Run | Yrd Mat Min Exi Min Mat Fac Low Low Zio Pro Fac Ext Fac Was Fac Upp Upp Zhi Pro Fac Upp Upp War Pro Res Res Acc Slots Evolved 18 | . . . . . 4 2 . . . . 2 . 2 . . . . . . 2 . . . . 2 2 2 Power 1 | . . . . . . . . . . . 1 . . . . . . . . . . . . . . . . Propulsion 7 | . . . . . 2 1 . . . . 1 . 1 . . . . . . . . . . . 1 . 1 Utility 10 | . . . . . 2 1 . . . . . . 1 . . . . . . 2 . . . . 1 2 1 Weapon . | . . . . . . . . . . . . . . . . . . . . . . . . . . . . Parts Attached 506 | 6 4 . . 5 42 53 1 2 9 3 84 16 118 3 31 1 2 3 2 42 3 2 15 6 20 29 4 Power 43 | 1 1 . . . 4 3 . . . . 8 2 11 . 3 . . . . 2 . 1 2 . 1 3 1 Engine 9 | 1 1 . . . 2 . . . . . 2 2 1 . . . . . . . . . . . . . . Core 25 | . . . . . 2 2 . . . . 6 . 9 . 3 . . . . 2 . 1 . . . . . Reactor 9 | . . . . . . 1 . . . . . . 1 . . . . . . . . . 2 . 1 3 1 Propulsion 130 | 2 1 . . . 5 14 . . . . 14 2 41 1 10 . . . 1 15 1 . 5 2 9 5 2 Treads . | . . . . . . . . . . . . . . . . . . . . . . . . . . . . Leg 18 | 2 1 . . . 5 4 . . . . . . 6 . . . . . . . . . . . . . . Wheel . | . . . . . . . . . . . . . . . . . . . . . . . . . . . . Hover 14 | . . . . . . . . . . . . . 14 . . . . . . . . . . . . . . Flight 98 | . . . . . . 10 . . . . 14 2 21 1 10 . . . 1 15 1 . 5 2 9 5 2 Utility 197 | 1 2 . . 2 13 20 . . 6 . 41 8 45 . 10 1 2 3 1 15 2 . 3 1 9 11 1 Device 103 | . 1 . . . 7 12 . . . . 27 7 22 . 5 1 2 . . 9 . . 1 . 4 4 1 Storage 6 | 1 . . . 1 . 1 . . . . . . 1 . . . . . . . . . 1 . . 1 . Processor 18 | . 1 . . . 1 2 . . 4 . . . 4 . . . . . . 2 . . . 1 . 3 . Hackware 9 | . . . . . . 2 . . . . 2 . 3 . 1 . . . . 1 . . . . . . . Protection 61 | . . . . 1 5 3 . . 2 . 12 1 15 . 4 . . 3 1 3 2 . 1 . 5 3 . Artifact . | . . . . . . . . . . . . . . . . . . . . . . . . . . . . Weapon 136 | 2 . . . 3 20 16 1 2 3 3 21 4 21 2 8 . . . . 10 . 1 5 3 1 10 . Energy Gun 30 | 2 . . . 2 . 9 . 1 1 1 5 . 3 1 1 . . . . . . . 1 1 1 1 . Energy Cannon 21 | . . . . . 10 2 . . . . 1 . 4 . 2 . . . . 2 . . . . . . . Ballistic Gun 6 | . . . . . . . . . . . . . 4 . 1 . . . . . . . . . . 1 . Ballistic Cannon 15 | . . . . . . . . . . . 4 2 3 . . . . . . 2 . . 2 . . 2 . Launcher 46 | . . . . 1 7 3 1 1 1 2 7 2 4 1 4 . . . . 6 . 1 . . . 5 . Special Weapon 1 | . . . . . 1 . . . . . . . . . . . . . . . . . . . . . . Impact Weapon 3 | . . . . . . 1 . . . . 1 . 1 . . . . . . . . . . . . . . Slashing Weapon 8 | . . . . . 2 1 . . . . 3 . 1 . . . . . . . . . . . . 1 . Piercing Weapon 5 | . . . . . . . . . 1 . . . . . . . . . . . . . 2 2 . . . Special Melee Weapon 1 | . . . . . . . . . . . . . 1 . . . . . . . . . . . . . . Unidentified Prototypes 47 | . . . . . 2 11 . . 3 . 3 . 9 . 2 . . 2 . 1 . . 5 . 3 5 1 Parts Lost 69 | . . . . . . . . . . 1 7 11 14 1 6 . . . . 7 1 3 2 6 1 5 4 Power 11 | . . . . . . . . . . . 1 3 1 . . . . . . 2 . 2 1 . . . 1 Propulsion 27 | . . . . . . . . . . . 1 3 9 . 4 . . . . 1 1 1 1 3 . 1 2 Utility 23 | . . . . . . . . . . . 5 3 2 1 2 . . . . 3 . . . 2 . 4 1 Weapon 8 | . . . . . . . . . . 1 . 2 2 . . . . . . 1 . . . 1 1 . . Highest Loss Streak 10 | . . . . . . . . . . 1 2 10 4 1 2 . . . . 2 1 2 1 3 1 3 3 To Critical Strikes . | . . . . . . . . . . . . . . . . . . . . . . . . . . . . Average Slot Usage (%) 91 | . 98 100 100 100 96 99 100 100 100 100 97 96 83 85 86 88 88 88 88 83 71 73 77 80 73 88 81 Engine 1 | . 13 14 14 14 . . . . . . . 3 . . . . . . . . . . 6 2 . . . Core 6 | . . . . . 8 7 7 7 7 7 12 6 7 11 11 11 11 11 11 9 5 2 . . . . . Leg 8 | . 27 28 28 28 34 12 . . . . . . 3 . . . . . . . . . . . . . . Hover 2 | . . . . . . . . . . . . . 12 . . . . . . . . . . . . . . Flight 21 | . . . . . . 25 38 38 38 38 39 39 14 31 29 29 29 29 29 26 26 23 21 29 27 29 29 Device 7 | . 12 14 14 10 4 7 7 7 7 7 14 11 7 . 4 5 5 5 5 6 5 5 4 2 3 12 10 Storage 5 | . 2 . . 3 9 7 7 7 7 7 6 6 4 5 5 5 5 5 5 5 5 5 3 5 4 4 4 Processor 3 | . 11 14 14 10 6 7 . . . . . . 1 5 . . . . . . . . . 1 4 4 4 Hackware 9 | . . . . . . 7 15 15 15 15 3 6 13 17 17 17 17 17 17 18 21 21 21 19 14 13 12 Protection 6 | . . . . 3 14 6 7 7 7 7 6 7 3 . 4 5 5 5 5 5 1 10 10 7 7 9 6 Energy Gun 4 | . 28 28 28 26 . 5 4 1 6 2 3 . 1 . . . . . . . . . 2 . . . . Energy Cannon 1 | . . . . . 9 1 . . . . . . 1 . . . . . . 1 . . . . . . . Launcher 1 | . . . . 1 . . 2 5 . 4 . 1 . 4 4 5 5 5 5 2 2 . . . . . 4 Slashing Weapon 3 | . . . . . 7 4 . . . . 4 5 1 5 5 5 5 5 5 5 5 5 1 . . 3 4 Peak Build Rating 163 | 6 10 10 11 12 36 67 62 62 68 62 83 83 100 100 107 103 104 107 104 121 105 103 122 113 140 163 158 Average Rating 70 | 4 9 10 10 10 28 54 60 58 61 59 71 75 78 90 97 103 103 102 103 108 96 89 93 105 114 147 149 On Entrance 70 | . 6 10 10 11 9 31 62 58 58 62 56 77 26 100 93 104 103 103 103 104 105 97 83 113 96 133 151 Naked Turns . | . . . . . . . . . . . . . . . . . . . . . . . . . . . . Heaviest Build 62 | 12 13 8 8 20 36 38 31 31 31 33 45 48 46 40 43 38 40 38 40 45 40 46 45 43 49 62 62 Greatest Support 88 | 20 20 20 20 20 55 88 34 34 34 42 59 64 71 53 51 44 44 44 44 50 46 46 43 43 66 69 70 Greatest Overweight (x) 7 | 1 . . . . 1 6 . . 1 1 1 3 7 . 1 . . . . 1 . 1 1 . . 1 . Average Overweight (x) . | . . . . . . . . . . . . . . . . . . . . . . . . . . . . Largest Inventory Capacity 10 | 8 8 5 5 10 10 10 10 10 10 10 10 10 10 10 10 10 10 10 10 10 10 10 10 10 10 10 10 Average Capacity 9 | 7 5 5 5 6 10 10 10 10 10 10 10 10 9 10 10 10 10 10 10 10 10 10 8 10 10 10 10 Most Carried 10 | 1 6 5 5 8 10 10 10 10 10 10 10 10 10 10 10 10 10 10 10 10 10 10 10 10 10 10 10 Average Carried 8 | . 4 5 5 5 9 9 10 10 10 10 9 10 9 10 8 10 10 10 9 8 9 8 6 9 9 9 9 Final Capacity 10 | 8 5 5 5 10 10 10 10 10 10 10 10 10 10 10 10 10 10 10 10 10 10 10 10 10 10 10 10 Final Carried 10 | 1 5 5 5 8 9 10 10 10 10 10 10 10 10 10 10 10 10 10 10 9 10 8 10 9 9 10 10 Class Distribution -------------------- 39% | Hacker-Sprinter 23% | Mutant 17% | Hacker-Mutant 9% | Wizard-Sprinter 3% | Scavenger-Mutant 3% | Sprinter Dominant Class ---------------- Mutant | -10/Materials Mutant | -10/Mines Mutant | -10/Exiles Skirmisher | -9/Mines Mutant | -8/Materials Hacker-Sprinter | -7/Factory Hacker-Sprinter | -7/Lower Caves Hacker-Sprinter | -7/Lower Caves Hacker-Mutant | -7/Zion Hacker-Sprinter | -6/Proximity Caves Hacker-Sprinter | -6/Factory Commander-Sprinter | -6/Extension Hacker-Mutant | -5/Factory Hacker-Sprinter | -5/Waste Hacker-Sprinter | -5/Factory Hacker-Sprinter | -5/Upper Caves Hacker-Sprinter | -5/Upper Caves Hacker-Sprinter | -5/Zhirov Hacker-Sprinter | -4/Proximity Caves Wizard-Sprinter | -4/Factory Wizard-Sprinter | -4/Upper Caves Wizard-Sprinter | -4/Upper Caves Wizard-Sprinter | -4/Warlord Wizard-Sprinter | -3/Proximity Caves Hacker-Sprinter | -3/Research Hacker-Sprinter | -2/Research Hacker-Sprinter | -1/Access Resources | -11 -10 -10 -10 -9 -8 -7 -7 -7 -7 -6 -6 -6 -5 -5 -5 -5 -5 -5 -4 -4 -4 -4 -4 -3 -3 -2 -1 ----------- Run | Yrd Mat Min Exi Min Mat Fac Low Low Zio Pro Fac Ext Fac Was Fac Upp Upp Zhi Pro Fac Upp Upp War Pro Res Res Acc Matter Collected 9546 | 260 40 . . 61 654 541 201 75 76 150 1479 418 2136 130 606 10 20 . 249 724 70 20 333 60 70 1118 45 Remotely . | . . . . . . . . . . . . . . . . . . . . . . . . . . . . Salvage Created 22443 | 73 433 56 . 26 2135 2611 88 186 . 169 3558 405 2760 . 3440 . . . 875 2801 94 20 455 485 334 1245 194 Parts 997 | 3 28 8 . 5 108 114 1 9 . 4 158 17 114 . 141 . . . 37 127 5 1 14 25 14 60 4 Haulers Intercepted 32 | . 2 . . . 5 4 . . . . 4 . 4 . 6 . . . . 5 . . . . 2 . . Recyclers Shooed 12 | . 1 . . . 1 2 . . . . 3 . 3 . 2 . . . . . . . . . . . . Parts Field Recycled . | . . . . . . . . . . . . . . . . . . . . . . . . . . . . Retrieved Matter . | . . . . . . . . . . . . . . . . . . . . . . . . . . . . Parts Self-Destructed 57 | . . . . . . . 1 6 . 11 . . . . . . . . 9 . 6 1 . 23 . . . Prevented 26 | . . . . . . . . 1 . 2 . . . . . . . . 23 . . . . . . . . Kills | -11 -10 -10 -10 -9 -8 -7 -7 -7 -7 -6 -6 -6 -5 -5 -5 -5 -5 -5 -4 -4 -4 -4 -4 -3 -3 -2 -1 ------- Run | Yrd Mat Min Exi Min Mat Fac Low Low Zio Pro Fac Ext Fac Was Fac Upp Upp Zhi Pro Fac Upp Upp War Pro Res Res Acc Combat Hostiles Destroyed 331 | . 9 3 . 4 36 23 4 8 . 5 41 6 25 . 43 . . . 20 52 3 1 9 11 1 22 5 Melee 84 | . . . . . 5 9 . 2 . 2 12 1 4 . 3 . . . 1 13 1 1 3 8 1 16 2 Guns 25 | . 7 2 . . 1 2 . . . . 4 . 5 . . . . . . . . . 4 . . . . Cannons 30 | . . . . . 9 1 . . . . 5 4 9 . . . . . . 1 . . 1 . . . . AOE 169 | . 2 1 . 4 16 9 4 5 . 3 19 1 7 . 33 . . . 15 35 2 . 1 3 . 6 3 Classes Destroyed 26 | 1 5 . . . 6 4 . 1 . . 2 . 2 . . . . . 1 . 1 . 2 . . 1 . Worker 26 | . . . . . 3 3 . . . . 3 . 5 . 10 . . . . 1 . . . . . 1 . Builder 15 | . 1 . . . 2 3 . . . . . 1 4 . 3 . . . . 1 . . . . . . . Tunneler 1 | . . . . . . 1 . . . . . . . . . . . . . . . . . . . . . Hauler 32 | . 2 . . . 5 4 . . . . 4 . 4 . 6 . . . . 5 . . . . 2 . . Recycler 41 | 1 . . . . 2 15 . . . . 11 2 5 . 4 . . . . 1 . . . . . . . Minesweeper 1 | . . . . . . . . . . . . . . . . . . . . . 1 . . . . . . Mechanic 3 | . . . . . 1 . . . . . . . 1 . . . . . . . . . 1 . . . . Operator 6 | . . . . . 2 . . . . . 1 . 1 . 1 . . . . . . . . . . 1 . Drone 4 | . . . . . . . . . . . . . . . . . . . 2 . . . . 2 . . . Watcher 47 | . 3 . . . 4 4 . . . . 7 . 9 . 6 . . . . 8 . . . . 2 4 . Swarmer 86 | . 7 3 . 4 3 . . 3 . . 6 . 2 . 16 . . . 12 23 1 . . . . 3 3 Cutter 2 | . . . . . . . . . . . 2 . . . . . . . . . . . . . . . . Saboteur 3 | . . . . . . . . . . . . . 1 . 1 . . . . . . 1 . . . . . Grunt 109 | . 2 . . . 21 6 4 4 . 5 13 4 8 . 20 . . . 4 8 1 . 1 4 . 4 . Brawler 5 | . . . . . . . . . . . . . 1 . . . . . . 2 . . 2 . . . . Duelist 12 | . . . . . 1 . . . . . 2 . 1 . 3 . . . . 3 1 . . 1 . . . Protector 5 | . . . . . . 1 . . . . . . . . . . . . . 2 . . 2 . . . . Sentry 37 | . . . . . 10 6 . . . . 7 2 2 . 1 . . . 2 3 . . . 1 1 2 . Demolisher 1 | . . . . . . . . . . . . . . . . . . . . . . . 1 . . . . Specialist 2 | . . . . . . 2 . . . . . . . . . . . . . . . . . . . . . Hunter 26 | . . . . . 1 3 . . . . 6 . 4 . 1 . . . . . . . . 2 . 7 2 Programmer 33 | . . . . . . 5 . . . . 4 . 6 . 1 . . . . 11 . . 1 1 . 4 . Heavy 1 | . . . . . . . . . . . 1 . . . . . . . . . . . . . . . . Behemoth 2 | . . . . . . . . . . . . . . . . . . . . . . . 2 . . . . Executioner 2 | . . . . . . . . . . . . . . . . . . . . . . . . . . 2 . Thief 1 | . . . . . . . . 1 . . . . . . . . . . . . . . . . . . . Best Kill Streak 13 | 1 4 3 . 4 6 4 4 4 . 3 6 2 6 . 13 . . . 7 9 2 1 4 5 2 5 3 Combat Bots Only 9 | . 4 3 . 4 4 3 4 4 . 3 6 2 3 . 9 . . . 7 9 2 1 4 5 1 5 3 Max Kills in Single Turn 8 | 1 2 1 . 4 4 4 2 1 . 1 3 1 4 . 8 . . . 3 4 2 1 2 2 1 3 3 Gunslinging 1 | . 1 . . . . . . . . . . . . . . . . . . . . . . . . . . Exploded 4 | . 1 1 . 4 3 3 2 1 . 1 3 1 3 . 4 . . . 3 4 2 . 1 2 . 3 3 Melee 1 | . . . . . 1 1 . 1 . 1 1 1 1 . 1 . . . 1 1 1 1 1 1 1 1 1 Uniques/NPCs Destroyed . | . . . . . . . . . . . . . . . . . . . . . . . . . . . . Combat | -11 -10 -10 -10 -9 -8 -7 -7 -7 -7 -6 -6 -6 -5 -5 -5 -5 -5 -5 -4 -4 -4 -4 -4 -3 -3 -2 -1 -------- Run | Yrd Mat Min Exi Min Mat Fac Low Low Zio Pro Fac Ext Fac Was Fac Upp Upp Zhi Pro Fac Upp Upp War Pro Res Res Acc Hostile Shots Fired 1561 | . 17 9 . . 78 113 5 12 . 55 261 146 227 2 88 . . . 38 212 13 20 43 79 17 76 50 Missed 648 | . 8 3 . . 22 42 2 6 . 26 119 57 78 1 35 . . . 19 93 4 15 12 35 7 41 23 Damage Taken 13457 | . 82 31 . . 708 703 56 75 . 347 1571 1155 2524 24 917 . . . 299 1811 137 139 474 617 206 1091 490 Core 2272 | . . . . . 24 109 12 38 . 54 283 448 391 24 120 . . . 83 290 16 . 14 91 42 145 88 Absorbed by Shields 65 | . . . . . . . . . . . . 65 . . . . . . . . . . . . . . . Redirected to Shielding 104 | . . . . . . . . . . . 13 91 . . . . . . . . . . . . . . . Ignored by Resistances 3850 | . 26 12 . . 203 209 17 21 . 98 472 348 712 7 256 . . . 86 510 40 38 131 181 56 292 135 Regen/Repaired (Parts) 1970 | . . . . . 114 231 . . . . 518 . 368 3 . . . . . 383 . . 157 . 128 . 68 Core Remaining (%) 76 | 100 . . . 100 95 . . . . 69 . 14 . . . . . . 38 . . . . 64 96 90 94 Volleys Fired 768 | 1 28 5 . 3 92 52 6 6 . 12 113 29 219 7 48 . . . 27 51 4 2 37 8 . 15 3 Largest 2 | 2 2 2 . 2 2 1 1 1 . 1 1 1 2 1 1 . . . 1 1 1 1 1 1 . 1 1 Hottest 180 | 80 80 80 . 80 126 81 33 81 . 81 81 40 180 81 90 . . . 40 105 49 40 65 60 . 70 55 Shots Fired 872 | 2 56 10 . 6 120 52 6 6 . 12 113 29 259 7 47 . . . 27 51 4 2 37 8 . 15 3 Gun 311 | 2 56 10 . 5 8 26 . 1 . 3 33 . 120 7 . . . . . . . . 32 8 . . . Cannon 337 | . . . . . 88 18 . . . . 51 27 121 . 3 . . . . 23 . . 5 . . 1 . Launcher 219 | . . . . 1 19 8 6 5 . 9 29 2 18 . 44 . . . 27 28 4 2 . . . 14 3 Special 5 | . . . . . 5 . . . . . . . . . . . . . . . . . . . . . . Kinetic 222 | . . . . . . . . . . . 51 27 133 . . . . . . 5 . . 5 . . 1 . Thermal 199 | . . . . . . 26 . 1 . 3 33 . 108 7 3 . . . . 18 . . . . . . . Explosive 125 | . . . . 1 19 8 6 5 . 9 29 2 7 . . . . . . 18 4 . . . . 14 3 Electromagnetic 281 | 2 56 10 . 5 96 18 . . . . . . 11 . 44 . . . 27 10 . 2 . . . . . Entropic 40 | . . . . . . . . . . . . . . . . . . . . . . . 32 8 . . . Robot Hit Streak 37 | 2 9 4 . 4 16 22 20 24 . 4 16 22 37 6 12 . . . 3 14 . . 13 6 . 6 . Robot Miss Streak 4 | . 2 2 . 1 2 1 . . . 1 3 3 4 1 2 . . . 1 1 1 3 4 2 . 2 . Penetration Max 1 | . . . . . . . . . . . . . 1 . . . . . . . . . . . . . . Secondary Targets 2 | . 1 1 . . . . . . . . . . . . . . . . . . . . . . . . . Max Gunslinging Chain 1 | . 1 1 . . . . . . . . . . . . . . . . . . . . . . . . . Shots Hit Robots 899 | 2 30 5 . 3 106 93 4 8 . 15 116 28 170 6 43 . . . 8 94 5 2 39 22 15 74 11 Core Hits 751 | 2 18 3 . 3 81 53 6 13 . 16 112 13 81 . 91 . . . 23 124 13 1 33 16 5 38 6 Critical Kills 9 | . . . . . . 4 . . . . 1 . 2 . . . . . . 2 . . . . . . . Critical Parts Destroyed 20 | . . . . . . 7 . 3 . . 3 . 3 . . . . . . . . . 2 2 . . . Critical Strikes 87 | . . . . . 6 16 . 3 . . 10 4 8 . 2 . . . . 10 . . 3 5 3 14 3 Meltdown 2 | . . . . . . . . . . . . . . . . . . . . 2 . . . . . . . Destroy 13 | . . . . . . 6 . 1 . . 1 . 5 . . . . . . . . . . . . . . Blast 9 | . . . . . . . . . . . 3 4 2 . . . . . . . . . . . . . . Corrupt 2 | . . . . . 2 . . . . . . . . . . . . . . . . . . . . . . Smash 10 | . . . . . . 5 . 2 . . 3 . . . . . . . . . . . . . . . . Sever 38 | . . . . . 4 5 . . . . 3 . 1 . 2 . . . . 8 . . . . . 12 3 Detonate 4 | . . . . . . . . . . . . . . . . . . . . . . . 2 2 . . . Sunder 9 | . . . . . . . . . . . . . . . . . . . . . . . 1 3 3 2 . Melee Attacks 684 | . . . . . 45 107 . 5 . 11 126 8 25 . 60 . . . 3 120 7 4 5 17 16 100 25 Impact 52 | . . . . . . 19 . 5 . . 28 . . . . . . . . . . . . . . . . Slashing 565 | . . . . . 45 88 . . . . 88 8 24 . 60 . . . 3 120 7 4 . . . 93 25 Piercing 21 | . . . . . . . . . . 11 10 . . . . . . . . . . . . . . . . Entropic 45 | . . . . . . . . . . . . . . . . . . . . . . . 5 17 16 7 . Sneak Attacks 81 | . . . . . 5 24 . . . . 20 2 4 . 8 . . . . 7 1 . 1 1 3 5 . Combat Hostiles 11 | . . . . . . 2 . . . . 4 . . . . . . . . 1 . . . 1 . 3 . Follow-up Attacks . | . . . . . . . . . . . . . . . . . . . . . . . . . . . . Damage Inflicted 66887 | 24 577 107 . 232 4728 6011 498 700 . 1280 8050 1349 7593 143 7472 . . . 1605 10883 894 98 2754 1959 1557 7319 1054 Guns 5595 | 24 447 58 . 33 94 392 . 24 . 52 338 . 1699 143 . . . . . . . . 1888 403 . . . Cannons 6705 | . . . . . 1741 297 . . . . 789 763 2608 . 66 . . . . 302 . . 139 . . . . Explosions 29532 | . 121 45 . 197 1782 1607 498 460 . 865 2729 209 2511 . 5699 . . . 1514 6575 563 . 146 186 . 3330 495 Melee 25036 | . . . . . 1107 3715 . 216 . 363 4194 377 775 . 1707 . . . 91 4006 331 98 581 1370 1557 3989 559 Ramming 19 | . 9 4 . 2 4 . . . . . . . . . . . . . . . . . . . . . . Kinetic 4213 | . . . . . . . . . . . 789 763 2422 . . . . . . 100 . . 139 . . . . Thermal 8877 | . 121 45 . . 158 1680 . 24 . 52 463 . 3225 143 1379 . . . 140 1115 . . 146 186 . . . Explosive 17355 | . . . . 197 1624 319 498 460 . 865 2365 209 532 . 1242 . . . . 4656 563 . . . . 3330 495 Electromagnetic 9096 | 24 447 58 . 33 1835 297 . . . . 239 . 639 . 3144 . . . 1374 1006 . . . . . . . Impact 1628 | . . . . . . 1107 . 216 . . 305 . . . . . . . . . . . . . . . . Slashing 18810 | . . . . . 1107 2608 . . . . 3630 377 775 . 1707 . . . 91 4006 331 98 . . . 3521 559 Piercing 622 | . . . . . . . . . . 363 259 . . . . . . . . . . . . . . . . Entropic 6267 | . . . . . . . . . . . . . . . . . . . . . . . 2469 1773 1557 468 . Highest Corruption 9 | . . . . . . 3 . . 9 . 2 1 4 1 1 1 1 . . 3 2 2 2 . . . . Average Corruption 1 | . . . . . . 1 . . 8 . 1 1 1 1 1 1 1 . . 2 2 2 2 . . . . Corruption Purged 19 | . . . . . . 3 . . . . 3 . 7 . . . 1 . . 5 . . . . . . . Corruption Blocked . | . . . . . . . . . . . . . . . . . . . . . . . . . . . . Effects 83 | . . . . . . 15 . . 3 . 5 2 31 2 10 . . . . 11 . 3 1 . . . . Message Errors 15 | . . . . . . 2 . . . . 2 . 4 2 1 . . . . 3 . . 1 . . . . Matter Fused 30 | . . . . . . 7 . . 2 . 1 1 13 . 2 . . . . 3 . 1 . . . . . Heat Flow Errors 10 | . . . . . . 1 . . . . 1 . 2 . 4 . . . . 1 . 1 . . . . . Energy Discharges 6 | . . . . . . . . . . . 1 1 4 . . . . . . . . . . . . . . Parts Rejected 2 | . . . . . . . . . . . . . 2 . . . . . . . . . . . . . . Data Loss (minor) 14 | . . . . . . 4 . . 1 . . . 5 . . . . . . 4 . . . . . . . Data Loss (major) 2 | . . . . . . . . . . . . . . . 1 . . . . . . 1 . . . . . Misfires 1 | . . . . . . . . . . . . . 1 . . . . . . . . . . . . . . Alerts 2 | . . . . . . 1 . . . . . . . . 1 . . . . . . . . . . . . Weapon Failures 1 | . . . . . . . . . . . . . . . 1 . . . . . . . . . . . . Overload Shots . | . . . . . . . . . . . . . . . . . . . . . . . . . . . . Overflow Damage 5426 | . . . . 35 200 1101 19 103 . . 1003 69 530 . 631 . . . 29 595 83 8 59 220 32 663 46 Projectiles 126 | . . . . . 42 1 . . . . 24 1 58 . . . . . . . . . . . . . . Explosions 1888 | . . . . 35 14 328 19 . . . 76 . 413 . 331 . . . 26 335 . . . . . 291 20 Melee 3412 | . . . . . 144 772 . 103 . . 903 68 59 . 300 . . . 3 260 83 8 59 220 32 372 26 Knockbacks 10 | . 1 . . . . 1 . 1 . . . 1 6 . . . . . . . . . . . . . . Impact 3 | . 1 . . . . 1 . 1 . . . . . . . . . . . . . . . . . . . Kinetic 7 | . . . . . . . . . . . . 1 6 . . . . . . . . . . . . . . Secondary . | . . . . . . . . . . . . . . . . . . . . . . . . . . . . Self-Inflicted Damage 726 | . 25 . . . 19 . 18 . . 19 150 . 140 . 10 . . . 77 . . 82 . . . 186 . Shots 21 | . 1 . . . 1 . 1 . . 1 4 . 4 . 1 . . . 4 . . 2 . . . 2 . Rammed . | . . . . . . . . . . . . . . . . . . . . . . . . . . . . Targets Rammed 10 | . 6 2 . 1 1 . . . . . . . . . . . . . . . . . . . . . . Kicked 10 | . 6 2 . 1 1 . . . . . . . . . . . . . . . . . . . . . . Crushed . | . . . . . . . . . . . . . . . . . . . . . . . . . . . . Highest Temperature 462 | 3 78 72 . 36 192 144 6 36 4 113 411 323 462 332 439 295 235 90 . 162 1 182 16 22 255 50 110 Average Temperature 84 | 2 29 33 . 16 61 27 2 3 2 13 86 64 113 143 105 143 82 46 . 42 1 79 7 8 52 23 44 Received Heat Transfer 2208 | . 18 . . . 405 129 27 18 . 120 135 360 177 . 216 . . . . 162 9 30 48 210 27 99 18 Effects 33 | . . . . . . . . . . . 8 2 19 3 1 . . . . . . . . . . . . Shutdowns 4 | . . . . . . . . . . . 1 1 2 . . . . . . . . . . . . . . Energy Bleed 7 | . . . . . . . . . . . . . 7 . . . . . . . . . . . . . . Interference 15 | . . . . . . . . . . . 7 . 6 2 . . . . . . . . . . . . . Matter Decay 3 | . . . . . . . . . . . . . 2 1 . . . . . . . . . . . . . Short Circuit 3 | . . . . . . . . . . . . 1 2 . . . . . . . . . . . . . . Damage (minor) 1 | . . . . . . . . . . . . . . . 1 . . . . . . . . . . . . Siege Activations . | . . . . . . . . . . . . . . . . . . . . . . . . . . . . Robots Corrupted 23 | . . . . . 5 2 . 1 . . 3 . . . 7 . . . 4 1 . . . . . . . Combat Hostiles 21 | . . . . . 5 2 . 1 . . 1 . . . 7 . . . 4 1 . . . . . . . Parts Fried 59 | . 1 . . . 17 3 . 2 . . 7 . 1 . 18 . . . 8 2 . . . . . . . Impact Corruptions 21 | . . . . . . 11 . 3 . . 7 . . . . . . . . . . . . . . . . Robots Melted 2 | . . . . . . . . . . . . . . . . . . . . 2 . . . . . . . Combat Hostiles 2 | . . . . . . . . . . . . . . . . . . . . 2 . . . . . . . Parts Melted 19 | . . . . . . 2 . . . . . . 10 . 1 . . . . 4 . . 1 . . 1 . Heat Transferred 8270 | . 200 . . . 100 1355 . 37 . 74 718 . 3329 222 1100 . . . 150 735 . . 100 150 . . . Parts Sabotaged . | . . . . . . . . . . . . . . . . . . . . . . . . . . . . Parts Stolen . | . . . . . . . . . . . . . . . . . . . . . . . . . . . . Parts Stripped . | . . . . . . . . . . . . . . . . . . . . . . . . . . . . Power Chain Reactions 22 | . 4 1 . . 3 1 . . . . . . 1 . 6 . . . 3 2 . 1 . . . . . Alert | -11 -10 -10 -10 -9 -8 -7 -7 -7 -7 -6 -6 -6 -5 -5 -5 -5 -5 -5 -4 -4 -4 -4 -4 -3 -3 -2 -1 ------- Run | Yrd Mat Min Exi Min Mat Fac Low Low Zio Pro Fac Ext Fac Was Fac Upp Upp Zhi Pro Fac Upp Upp War Pro Res Res Acc Peak Influence 1916 | 5 320 110 . 148 358 588 . . . . 771 776 902 292 1916 . . . . 1905 . . . . 401 1419 991 Initial 744 | . 2 . . . 48 39 . . . . 22 325 281 263 . . . . . 530 . . . . 286 196 744 Average 319 | 4 143 49 . 95 127 106 . . . . 301 510 248 132 936 . . . . 818 . . . . 342 484 839 Maximum Alert Level 5 | . 1 . . . 1 2 . . . . 3 3 3 1 5 . . . . 5 . . . . 2 4 3 Low Security (%) 49 | 100 86 100 . 100 78 85 . . . . 27 . 48 63 11 . . . . . . . . . . 13 . Level 1 22 | . 13 . . . 21 12 . . . . 45 51 24 36 3 . . . . 6 . . . . 88 43 . Level 2 16 | . . . . . . 2 . . . . 23 29 21 . 24 . . . . 47 . . . . 11 25 . Level 3 6 | . . . . . . . . . . . 2 18 5 . 19 . . . . 19 . . . . . 13 100 Level 4 3 | . . . . . . . . . . . . . . . 29 . . . . 19 . . . . . 4 . Level 5 . | . . . . . . . . . . . . . . . 5 . . . . 4 . . . . . . . High Security . | . . . . . . . . . . . . . . . 6 . . . . 3 . . . . . . . Max Security . | . . . . . . . . . . . . . . . . . . . . . . . . . . . . Squads Dispatched 103 | . 1 . . . 6 13 . . . . 20 2 25 . 11 . . . . 21 . 1 . . 1 1 1 Investigation 46 | . 1 . . . 4 6 . . . . 10 . 10 . 6 . . . . 8 . . . . . . 1 Extermination 18 | . . . . . . 5 . . . . 3 . 6 . . . . . . 3 . . . . 1 . . Reinforcement 22 | . . . . . 2 2 . . . . 5 1 6 . 4 . . . . 1 . . . . . 1 . Assault 11 | . . . . . . . . . . . 1 1 2 . 1 . . . . 5 . 1 . . . . . Garrison 6 | . . . . . . . . . . . 1 . 1 . . . . . . 4 . . . . . . . Intercept . | . . . . . . . . . . . . . . . . . . . . . . . . . . . . Searches Triggered 2 | . . . . . . . . . . . . . . . . . . . . 2 . . . . . . . Construction Impeded 4 | . . . . . . . . . . . 1 . 2 . 1 . . . . . . . . . . . . Haulers Reinforced 5 | . . . . . . 1 . . . . . . 1 . 2 . . . . 1 . . . . . . . Active Scanning Responses . | . . . . . . . . . . . . . . . . . . . . . . . . . . . . Cargo Convoy Interrupts 1 | . . . . . . 1 . . . . . . . . . . . . . . . . . . . . . Stealth | -11 -10 -10 -10 -9 -8 -7 -7 -7 -7 -6 -6 -6 -5 -5 -5 -5 -5 -5 -4 -4 -4 -4 -4 -3 -3 -2 -1 --------- Run | Yrd Mat Min Exi Min Mat Fac Low Low Zio Pro Fac Ext Fac Was Fac Upp Upp Zhi Pro Fac Upp Upp War Pro Res Res Acc Distress Signals 24 | . 1 . . . 4 3 . . . . 1 . 1 . . . . . . 2 . . . . . 9 3 Communications Jammed 1 | . . . . . . . . . . . . . . . . . . . . 1 . . . . . . . Distress Signals 1 | . . . . . . . . . . . . . . . . . . . . 1 . . . . . . . Times Spotted 594 | . 13 3 . 1 50 27 3 8 . 12 50 25 69 6 46 . . . 20 91 8 20 37 17 4 69 15 Peak Tracking Total 17 | . 4 3 . 1 5 3 4 4 . 4 5 10 5 6 7 . . . 7 11 7 14 11 8 2 17 15 Tactical Retreats 79 | . 2 . . . 6 2 . . . . 4 . 11 . 9 . . . 8 16 1 6 . 4 . 8 2 Traps | -11 -10 -10 -10 -9 -8 -7 -7 -7 -7 -6 -6 -6 -5 -5 -5 -5 -5 -5 -4 -4 -4 -4 -4 -3 -3 -2 -1 ------- Run | Yrd Mat Min Exi Min Mat Fac Low Low Zio Pro Fac Ext Fac Was Fac Upp Upp Zhi Pro Fac Upp Upp War Pro Res Res Acc Traps Triggered 21 | . 1 . . . 1 1 . . . . 5 . 6 . 3 . . . . 1 . . . . . . 3 Indirectly 2 | . . . . . . . . . . . . . . . 1 . . . . 1 . . . . . . . Trap Hack Attempts . | . . . . . . . . . . . . . . . . . . . . . . . . . . . . Triggered . | . . . . . . . . . . . . . . . . . . . . . . . . . . . . Disarmed . | . . . . . . . . . . . . . . . . . . . . . . . . . . . . Reprogrammed . | . . . . . . . . . . . . . . . . . . . . . . . . . . . . Reused 35 | . . . . . 2 10 . . . . 1 1 19 . . . . . . 2 . . . . . . . Traps Reconfigurated 168 | . . . . . 14 18 . . . . 50 10 38 . 4 . . . . 15 . . . . 13 2 4 Traps Extracted . | . . . . . . . . . . . . . . . . . . . . . . . . . . . . Installed 3 | . . . . . . . . . . . . . . . . . . . . . 3 . . . . . . Triggered 48 | . . . . . 2 11 . . . . 1 1 20 . 2 . . . . 2 . 1 8 . . . . Objects Rigged 2 | . . . . . . . . . . . . . . . . . . . . 2 . . . . . . . Exploded 1 | . . . . . . . . . . . . . . . . . . . . 1 . . . . . . . Machines | -11 -10 -10 -10 -9 -8 -7 -7 -7 -7 -6 -6 -6 -5 -5 -5 -5 -5 -5 -4 -4 -4 -4 -4 -3 -3 -2 -1 ---------- Run | Yrd Mat Min Exi Min Mat Fac Low Low Zio Pro Fac Ext Fac Was Fac Upp Upp Zhi Pro Fac Upp Upp War Pro Res Res Acc Machines Disabled 225 | . 3 4 . 4 11 46 . . . . 35 4 54 . 34 . . . 4 21 . . 3 . . 2 . Max in Single Turn 16 | . 2 2 . 4 3 16 . . . . 6 1 8 . 6 . . . 3 4 . . 2 . . 1 . Garrison Access 17 | . . . . . . 1 . . . . 3 . 3 . 3 . . . . 2 . . . . 1 3 1 Energy Cycler 1 | . . . . . . . . . . . . 1 . . . . . . . . . . . . . . . Machines Repaired . | . . . . . . . . . . . . . . . . . . . . . . . . . . . . Machines Dismantled . | . . . . . . . . . . . . . . . . . . . . . . . . . . . . Machines Sabotaged . | . . . . . . . . . . . . . . . . . . . . . . . . . . . . Overloaded Fab Kills . | . . . . . . . . . . . . . . . . . . . . . . . . . . . . Hacking | -11 -10 -10 -10 -9 -8 -7 -7 -7 -7 -6 -6 -6 -5 -5 -5 -5 -5 -5 -4 -4 -4 -4 -4 -3 -3 -2 -1 --------- Run | Yrd Mat Min Exi Min Mat Fac Low Low Zio Pro Fac Ext Fac Was Fac Upp Upp Zhi Pro Fac Upp Upp War Pro Res Res Acc Machines Accessed 146 | . 5 1 2 . 13 15 . 2 . . 24 3 20 . 9 . . 8 . 20 1 1 9 . 4 4 5 Terminals 67 | . 5 1 . . 9 9 . . . . 12 3 10 . 2 . . . . 9 . . . . 1 3 3 Fabricators 16 | . . . . . . 1 . . . . 3 . 5 . 3 . . . . 4 . . . . . . . Repair Stations 14 | . . . . . 1 1 . . . . 4 . 2 . . . . . . 4 . . . . 1 . 1 Recycling Units 1 | . . . . . . . . . . . 1 . . . . . . . . . . . . . . . . Scanalyzers 10 | . . . . . 2 3 . . . . 1 . 1 . 1 . . . . 1 . . . . 1 . . Garrison Access 15 | . . . . . 1 1 . . . . 3 . 2 . 3 . . . . 2 . . . . 1 1 1 Total Hacks 517 | . 21 2 24 . 45 62 . 6 . . 53 6 75 . 28 . . 47 . 77 1 1 18 . 15 18 18 Successful 337 | . 9 2 24 . 22 39 . 6 . . 26 3 39 . 20 . . 47 . 52 1 1 18 . 10 12 6 Failed 178 | . 11 . . . 22 23 . . . . 27 3 36 . 8 . . . . 25 . . . . 5 6 12 Catastrophic 33 | . 1 . . . 4 6 . . . . 2 . 8 . 1 . . . . 5 . . . . 2 2 2 Database Lockouts 2 | . 1 . . . 1 . . . . . . . . . . . . . . . . . . . . . . Manual 171 | . 13 . 1 . 25 14 . . . . 25 2 29 . 8 . . . . 37 . . . . 6 8 3 Terminals 249 | . 21 2 . . 33 22 . . . . 30 6 44 . 12 . . . . 47 . . . . 6 15 11 Fabricators 40 | . . . . . . 4 . . . . 8 . 13 . 6 . . . . 9 . . . . . . . Repair Stations 54 | . . . . . 5 11 . . . . 8 . 10 . . . . . . 13 . . . . 3 . 4 Recycling Units 2 | . . . . . . . . . . . 2 . . . . . . . . . . . . . . . . Scanalyzers 51 | . . . . . 5 23 . . . . 2 . 5 . 5 . . . . 6 . . . . 5 . . Garrison Access 24 | . . . . . 2 2 . . . . 3 . 3 . 5 . . . . 2 . . . . 1 3 3 Terminal Hacks 196 | . 9 2 24 . 14 7 . 6 . . 7 2 16 . 5 . . 47 . 21 1 1 18 . 1 11 4 Record 94 | . . 1 23 . . . . 5 . . . . 1 . . . . 35 . 6 . . 16 . . 6 1 Part Schematic 12 | . . . . . 3 . . . . . 1 . 3 . . . . 4 . 1 . . . . . . . Robot Analysis 13 | . 3 . . . 2 1 . . . . . . 2 . . . . 4 . 1 . . . . . . . Prototype ID Bank 12 | . 2 . . . 2 . . . . . 1 . 2 . . . . 4 . 1 . . . . . . . Open Door 9 | . . . . . . . . 1 . . 1 2 . . . . . . . . 1 1 2 . . . 1 Open DSF 1 | . . . . . . 1 . . . . . . . . . . . . . . . . . . . . . Level Access Points 2 | . . . . . . . . . . . . . . . . . . . . . . . . . . 1 1 Branch Access Points 6 | . 1 . . . 1 1 . . . . . . . . 1 . . . . . . . . . 1 1 . Terminal Index 3 | . . . . . . 1 . . . . . . . . 1 . . . . 1 . . . . . . . Fabricator Index 1 | . . . . . . . . . . . . . . . . . . . . 1 . . . . . . . Alert Level 1 | . . . . . . . . . . . . . . . 1 . . . . . . . . . . . . Unreport Threat 16 | . 1 . . . 3 1 . . . . 3 . 2 . 1 . . . . 4 . . . . . 1 . Locate Traps 11 | . 2 . . . 2 2 . . . . . . 3 . 1 . . . . . . . . . . . 1 Dispatch Records 1 | . . 1 . . . . . . . . . . . . . . . . . . . . . . . . . Recall Investigation 4 | . . . . . 1 . . . . . . . 1 . . . . . . 2 . . . . . . . Recall Assault 1 | . . . . . . . . . . . . . 1 . . . . . . . . . . . . . . Registered Components 1 | . . . . . . . . . . . . . . . . . . . . 1 . . . . . . . Registered Prototypes 2 | . . . . . . . . . . . . . . . . . . . . 1 . . . . . 1 . Zone Layout 5 | . . . . . . . . . . . 1 . 1 . . . . . . 2 . . . . . 1 . Derelict Proto ID Bank 1 | . . . 1 . . . . . . . . . . . . . . . . . . . . . . . . Fabricator Hacks 32 | . . . . . . 2 . . . . 6 . 10 . 6 . . . . 8 . . . . . . . Load Schematic 16 | . . . . . . 1 . . . . 3 . 5 . 3 . . . . 4 . . . . . . . Build 16 | . . . . . . 1 . . . . 3 . 5 . 3 . . . . 4 . . . . . . . Repair Station Hacks 42 | . . . . . 4 10 . . . . 4 . 10 . . . . . . 12 . . . . 2 . . Scan Component 21 | . . . . . 2 5 . . . . 2 . 5 . . . . . . 6 . . . . 1 . . Repair 21 | . . . . . 2 5 . . . . 2 . 5 . . . . . . 6 . . . . 1 . . Recycling Unit Hacks 2 | . . . . . . . . . . . 2 . . . . . . . . . . . . . . . . Report Inventory 1 | . . . . . . . . . . . 1 . . . . . . . . . . . . . . . . Retrieve Components 1 | . . . . . . . . . . . 1 . . . . . . . . . . . . . . . . Scanalyzer 35 | . . . . . 4 16 . . . . . . 1 . 4 . . . . 5 . . . . 5 . . Insert Component 17 | . . . . . 3 6 . . . . . . 1 . 2 . . . . 3 . . . . 2 . . Analyze 18 | . . . . . 1 10 . . . . . . . . 2 . . . . 2 . . . . 3 . . Garrison Access Hacks 13 | . . . . . . 1 . . . . 3 . 2 . 2 . . . . 2 . . . . 1 1 1 Seal Access 13 | . . . . . . 1 . . . . 3 . 2 . 2 . . . . 2 . . . . 1 1 1 Unauthorized Hacks 17 | . . . . . . 3 . . . . 4 1 . . 3 . . . . 4 . . . . 1 . 1 Terminals 10 | . . . . . . 1 . . . . 2 1 . . 2 . . . . 3 . . . . 1 . . Assimilate 7 | . . . . . . 1 . . . . 2 1 . . . . . . . 2 . . . . 1 . . Botnet 1 | . . . . . . . . . . . . . . . 1 . . . . . . . . . . . . Detonate 1 | . . . . . . . . . . . . . . . . . . . . 1 . . . . . . . Operators 1 | . . . . . . . . . . . . . . . 1 . . . . . . . . . . . . Fabricators . | . . . . . . . . . . . . . . . . . . . . . . . . . . . . Repair Stations 3 | . . . . . . . . . . . 1 . . . . . . . . 1 . . . . . . 1 Patch 3 | . . . . . . . . . . . 1 . . . . . . . . 1 . . . . . . 1 Recycling Units . | . . . . . . . . . . . . . . . . . . . . . . . . . . . . Scanalyzers 4 | . . . . . . 2 . . . . 1 . . . 1 . . . . . . . . . . . . Extract 4 | . . . . . . 2 . . . . 1 . . . 1 . . . . . . . . . . . . Garrison Access . | . . . . . . . . . . . . . . . . . . . . . . . . . . . . Data Cores Recovered . | . . . . . . . . . . . . . . . . . . . . . . . . . . . . Used . | . . . . . . . . . . . . . . . . . . . . . . . . . . . . Hacking Detections 95 | . 4 . . . 12 10 . . . . 20 1 17 . 7 . . . . 16 . . . . 2 2 4 Full Trace Events 39 | . 3 . . . 5 4 . . . . 8 . 9 . 4 . . . . 6 . . . . . . . Feedback Events 4 | . . . . . . . . . . . 3 . 1 . . . . . . . . . . . . . . Corruption 4 | . . . . . . . . . . . 3 . 1 . . . . . . . . . . . . . . Feedback Blocked 1 | . . . . . . . . . . . . . 1 . . . . . . . . . . . . . . Robot Schematics Acquired . | . . . . . . . . . . . . . . . . . . . . . . . . . . . . Robots Built . | . . . . . . . . . . . . . . . . . . . . . . . . . . . . Authchips . | . . . . . . . . . . . . . . . . . . . . . . . . . . . . Time . | . . . . . . . . . . . . . . . . . . . . . . . . . . . . Total Robot Build Rating . | . . . . . . . . . . . . . . . . . . . . . . . . . . . . Part Schematics Acquired 48 | . . . . . 4 13 . . 6 . 10 . 3 . 3 . . 4 . 3 . . . . 2 . . Parts Built 19 | . . . . . . 1 . . . . 4 . 5 . 3 . . . . 6 . . . . . . . Authchips . | . . . . . . . . . . . . . . . . . . . . . . . . . . . . Time 1487 | . . . . . . 67 . . . . 167 . 459 . 422 . . . . 372 . . . . . . . Total Part Build Rating 93 | . . . . . . 4 . . . . 12 . 24 . 18 . . . . 35 . . . . . . . Parts Repaired 20 | . . . . . 2 5 . . . . 2 . 5 . . . . . . 5 . . . . 1 . . Time 1183 | . . . . . 82 370 . . . . 38 . 302 . . . . . . 371 . . . . 20 . . Parts Recycled . | . . . . . . . . . . . . . . . . . . . . . . . . . . . . Recycled Matter . | . . . . . . . . . . . . . . . . . . . . . . . . . . . . Retrieved Matter . | . . . . . . . . . . . . . . . . . . . . . . . . . . . . Retrieved Components 10 | . . . . . . . . . . . 10 . . . . . . . . . . . . . . . . Parts Scanalyzed 14 | . . . . . 2 5 . . . . . . 1 . 2 . . . . 2 . . . . 2 . . Part Schematics Acquired 11 | . . . . . 1 4 . . . . . . . . 2 . . . . 2 . . . . 2 . . Parts Damaged 6 | . . . . . 1 2 . . . . . . 1 . . . . . . 1 . . . . 1 . . Bothacking | -11 -10 -10 -10 -9 -8 -7 -7 -7 -7 -6 -6 -6 -5 -5 -5 -5 -5 -5 -4 -4 -4 -4 -4 -3 -3 -2 -1 ------------ Run | Yrd Mat Min Exi Min Mat Fac Low Low Zio Pro Fac Ext Fac Was Fac Upp Upp Zhi Pro Fac Upp Upp War Pro Res Res Acc Used RIF Installer . | . . . . . . . . . . . . . . . . . . . . . . . . . . . . Robots Hacked 2 | . . . . . 1 . . . . . . . 1 . . . . . . . . . . . . . . Non-combat 2 | . . . . . 1 . . . . . . . 1 . . . . . . . . . . . . . . Combat . | . . . . . . . . . . . . . . . . . . . . . . . . . . . . Robot Hacks Applied 4 | . . . . . 3 . . . . . . . 1 . . . . . . . . . . . . . . parse_system 2 | . . . . . 1 . . . . . . . 1 . . . . . . . . . . . . . . no_distress 1 | . . . . . 1 . . . . . . . . . . . . . . . . . . . . . . find_recycling 1 | . . . . . 1 . . . . . . . . . . . . . . . . . . . . . . Relay Couplers Released 7 | . . . . . . . . . . . . . 2 . 3 . . . . . . . . . . 2 . Machine Destruction 7 | . . . . . . . . . . . . . 2 . 3 . . . . . . . . . . 2 . Fabnet Peak Effective % . | . . . . . . . . . . . . . . . . . . . . . . . . . . . . Robots Rewired 11 | . . . . . . . . . . . . 10 . . . . . . . 1 . . . . . . . Allies Hacked . | . . . . . . . . . . . . . . . . . . . . . . . . . . . . Hacks Repelled . | . . . . . . . . . . . . . . . . . . . . . . . . . . . . Allies | -11 -10 -10 -10 -9 -8 -7 -7 -7 -7 -6 -6 -6 -5 -5 -5 -5 -5 -5 -4 -4 -4 -4 -4 -3 -3 -2 -1 -------- Run | Yrd Mat Min Exi Min Mat Fac Low Low Zio Pro Fac Ext Fac Was Fac Upp Upp Zhi Pro Fac Upp Upp War Pro Res Res Acc Total Allies 48 | . . 2 . . . . . . 6 . 2 15 . 19 . . . . . 3 . . . . 1 . . Largest Group 19 | . . 2 2 . . . . . 6 6 1 13 . 19 . . . . . 1 . . . . 1 1 . Highest-Rated Group 684 | . . 42 42 . . . . . 146 146 26 499 . 684 . . . . . 56 . . . . 10 10 . Highest-Rated Ally 159 | . . 31 31 . . . . . 31 31 26 159 . 50 . . . . . 56 . . . . 10 10 . Total Orders 4 | . . . . . . . . . . . 4 . . . . . . . . . . . . . . . . STAY 2 | . . . . . . . . . . . 2 . . . . . . . . . . . . . . . . FOLLOW 2 | . . . . . . . . . . . 2 . . . . . . . . . . . . . . . . Ally Attacks 161 | . . . . . . . . . . 51 . 22 . 85 . . . . . 3 . . . . . . . Total Damage 5194 | . . . . . . . . . . 1132 . 800 . 3173 . . . . . 89 . . . . . . . Kills 22 | . . . . . . . . . . 7 . 8 . 6 . . . . . 1 . . . . . . . Allies Corrupted . | . . . . . . . . . . . . . . . . . . . . . . . . . . . . Allies Melted . | . . . . . . . . . . . . . . . . . . . . . . . . . . . . Intel | -11 -10 -10 -10 -9 -8 -7 -7 -7 -7 -6 -6 -6 -5 -5 -5 -5 -5 -5 -4 -4 -4 -4 -4 -3 -3 -2 -1 ------- Run | Yrd Mat Min Exi Min Mat Fac Low Low Zio Pro Fac Ext Fac Was Fac Upp Upp Zhi Pro Fac Upp Upp War Pro Res Res Acc Robot Analysis Total 12 | . 3 . . . 1 1 . . . . . . 2 . . . . 4 . 1 . . . . . . . Derelict Logs Recovered 16 | . . 2 . 1 . . 1 1 2 1 . . . . . 1 2 . 1 . 2 2 . . . . . Drone Launches . | . . . . . . . . . . . . . . . . . . . . . . . . . . . . Drone Recoveries . | . . . . . . . . . . . . . . . . . . . . . . . . . . . . Exploration | -11 -10 -10 -10 -9 -8 -7 -7 -7 -7 -6 -6 -6 -5 -5 -5 -5 -5 -5 -4 -4 -4 -4 -4 -3 -3 -2 -1 ------------- Run | Yrd Mat Min Exi Min Mat Fac Low Low Zio Pro Fac Ext Fac Was Fac Upp Upp Zhi Pro Fac Upp Upp War Pro Res Res Acc Turns Passed 25275 | 86 804 537 566 394 2917 3389 190 154 846 402 2562 395 4954 130 1166 87 176 43 379 1957 130 231 739 333 351 1098 259 Spaces Moved 31059 | 52 572 333 417 295 1576 2336 389 314 980 614 3754 401 5072 306 1829 261 473 140 853 3251 393 654 1183 1005 443 2587 576 Core 31 | 3 . . . . . . . . . . . 14 14 . . . . . . . . . . . . . . Treads . | . . . . . . . . . . . . . . . . . . . . . . . . . . . . Legs 4180 | 49 572 333 417 295 1576 687 . . . . . . 251 . . . . . . . . . . . . . . Wheels . | . . . . . . . . . . . . . . . . . . . . . . . . . . . . Hover 1820 | . . . . . . . . . . . . . 1820 . . . . . . . . . . . . . . Flight 25028 | . . . . . . 1649 389 314 980 614 3754 387 2987 306 1829 261 473 140 853 3251 393 654 1183 1005 443 2587 576 Fastest Speed 5 | 50 120 120 120 120 120 5 23 23 23 11 5 5 11 12 17 25 25 25 25 18 20 14 21 20 13 13 15 Average Speed 42 | 141 120 120 120 120 122 52 23 23 71 36 20 26 46 24 39 25 25 25 25 23 23 26 37 21 21 22 20 Slowest Speed 465 | 190 120 120 120 120 190 465 23 23 88 88 95 275 400 26 106 25 25 25 25 100 25 102 110 25 27 105 24 Overloaded Moves 738 | . . . . . . 14 . . . 18 102 47 54 4 106 . . . . 221 67 19 . 86 . . . Propulsion Burnouts . | . . . . . . . . . . . . . . . . . . . . . . . . . . . . Robots Hopped 75 | . . . . . . 9 . . . . 12 6 15 4 2 . . . . 10 . . . 2 4 10 1 Cave-ins Triggered . | . . . . . . . . . . . . . . . . . . . . . . . . . . . . Exploration Rate (%) 64 | 6 84 82 89 63 90 52 64 58 85 71 69 44 76 90 48 52 68 61 75 51 61 85 95 93 16 57 17 Regions Visited 27 Branch Regions 16 Pre-discovered Areas 11 | . . 1 1 2 . . . . 1 . . . . . . . . 3 1 . 1 1 . . . . . Known Exits Taken 7 | . 1 . . . . 1 1 . . . 1 . . . 1 . . . . . . . . 1 . 1 . Unknown Exits Taken 18 | 1 . 1 1 1 1 . . 1 1 1 . 1 . . . 1 1 1 1 1 1 1 1 . 1 . . Scrap Searched 20 | . . . . 2 . . . 2 3 3 . . . . . 1 2 . 2 . 1 3 . 1 . . . Spaces Dug 231 | . . . . . 26 23 . . . . 52 1 18 . 24 . . . . 44 . 1 . 1 1 26 14 Terrain Destroyed 2473 | . 50 4 . 27 233 260 24 27 . 71 514 29 328 . 193 . . . 12 368 76 13 5 27 1 191 20 Melee 189 | . . . . . 18 23 . . . . 41 1 3 . 23 . . . . 37 . 1 . 1 1 26 14 Projectile 75 | . . . . . . . . . . . 16 4 37 . 1 . . . . 7 . . 5 4 . 1 . AOE 2209 | . 50 4 . 27 215 237 24 27 . 71 457 24 288 . 169 . . . 12 324 76 12 . 22 . 164 6 Terrain Rammed . | . . . . . . . . . . . . . . . . . . . . . . . . . . . . Walls Destroyed . | . . . . . . . . . . . . . . . . . . . . . . . . . . . . Machines Disabled . | . . . . . . . . . . . . . . . . . . . . . . . . . . . . Actions | -11 -10 -10 -10 -9 -8 -7 -7 -7 -7 -6 -6 -6 -5 -5 -5 -5 -5 -5 -4 -4 -4 -4 -4 -3 -3 -2 -1 --------- Run | Yrd Mat Min Exi Min Mat Fac Low Low Zio Pro Fac Ext Fac Was Fac Upp Upp Zhi Pro Fac Upp Upp War Pro Res Res Acc Total 40985 | 59 633 460 483 328 2367 4254 482 378 1125 751 5181 632 7337 351 2117 281 529 146 980 4185 414 703 1437 1091 680 2925 676 Wait 7410 | . 9 121 65 17 574 1641 87 52 129 112 1006 127 1801 38 134 20 53 . 94 696 3 38 160 52 189 178 14 Move 30895 | 51 571 332 416 294 1575 2319 388 313 979 613 3730 389 5043 300 1824 260 472 139 852 3230 392 653 1182 1000 435 2570 573 Hop 62 | . . . . . . 7 . . . . 11 5 14 1 2 . . . . 10 . . . 2 3 6 1 Pick Up 139 | 1 10 . 1 5 12 18 . . . . 15 . 39 . 1 . . . 1 8 1 1 15 2 3 6 . Fast Attach 224 | 6 3 . . 1 12 24 . . 7 . 20 3 71 3 15 . 2 4 . 14 2 . 9 1 10 15 2 Attach 98 | . . . . . 5 5 . . . . 21 . 18 . 7 . . . . 17 1 2 3 5 5 7 2 Detach 63 | . . . . . 3 1 . . . . 14 . 8 . 6 . . . . 13 1 1 3 2 3 6 2 Swap 187 | . 1 . . 4 25 24 1 2 2 3 43 13 30 . 9 1 . . 2 11 . . 3 . 6 7 . Drop 255 | . 5 . 1 3 23 38 . . 8 . 28 2 69 2 11 . 2 3 1 10 . 2 20 2 10 15 . Fire 768 | 1 28 5 . 3 92 52 6 6 . 12 113 29 219 7 48 . . . 27 51 4 2 37 8 . 15 3 Melee 684 | . . . . . 45 107 . 5 . 11 126 8 25 . 60 . . . 3 120 7 4 5 17 16 100 25 Ram . | . . . . . . . . . . . . . . . . . . . . . . . . . . . . Kick 10 | . 6 2 . 1 1 . . . . . . . . . . . . . . . . . . . . . . Crush . | . . . . . . . . . . . . . . . . . . . . . . . . . . . . Escape Stasis 126 | . . . . . . 18 . . . . 54 . . . . . . . . . . . . . . . 54 Rewire 61 | . . . . . . . . . . . . 56 . . . . . . . 5 . . . . . . . Trap 3 | . . . . . . . . . . . . . . . . . . . . . 3 . . . . . . Miscellaneous . | . . . . . . . . . . . . . . . . . . . . . . . . . . . . Route ------- -11/Scrapyard -10/Materials (discovered 4 exits: [*Mat x2] / *Min x2) -10/Mines (discovered 3 exits: [*Mat x2] / *Exi) -10/Exiles -9/Mines -8/Materials (discovered 3 exits: *Fac x3) -7/Factory (discovered 2 exits: *Low x2) -7/Lower Caves -7/Lower Caves -7/Zion -6/Proximity Caves -6/Factory (discovered 6 exits: *Fac x2 / [*Low x2] / *Ext x2) -6/Extension -5/Factory (discovered 3 exits: *Fac / *Upp x2) -5/Waste -5/Factory (discovered 4 exits: *Fac x2 / *Upp x2) -5/Upper Caves -5/Upper Caves -5/Zhirov -4/Proximity Caves -4/Factory (discovered 3 exits: *Res x2 / *Upp) -4/Upper Caves -4/Upper Caves (discovered 2 exits: *Res / *War) -4/Warlord -3/Proximity Caves -3/Research (discovered 3 exits: *Res / Qua x2) -2/Research (discovered 5 exits: *Acc x3 / *Tes x2) -1/Access To Epsilon Eridani History --------- Turn | Location | Event 16 | -11/Scrapyard | Discovered new exit (range 16) 87 | -11/Scrapyard | Entered Materials 298 | -10/Materials | Discovered new exit (range 16) 304 | -10/Materials | Build established: Mutant 491 | -10/Materials | Discovered new exit (range 16) 531 | -10/Materials | Identified exit to Mines 565 | -10/Materials | Discovered new exit (range 5) 746 | -10/Materials | Discovered new exit (range 10) 762 | -10/Materials | Central database locked down 891 | -10/Materials | Entered Mines 922 | -10/Mines | Found a hidden stash of uninstalled traps 1037 | -10/Mines | Discovered new exit (range 11) 1260 | -10/Mines | Learned location of Storage (-9) 1350 | -10/Mines | Discovered new exit (range 13) 1351 | -10/Mines | Learned Materials terminal intel 1369 | -10/Mines | Discovered new exit (range 11) 1418 | -10/Mines | Deemed a non-threat by the Exiles lab entrance 1428 | -10/Mines | Entered Exiles 1428 | -10/Exiles | Accompanied by 2 allies 1458 | -10/Exiles | Led the pair of lost Derelicts to a safe place 1459 | -10/Exiles | Met 8R-AWN 1480 | -10/Exiles | Met EX-HEX 1512 | -10/Exiles | Met EX-BIN 1530 | -10/Exiles | Aligned with FarCom system 1531 | -10/Exiles | Given EX-Vault access code 1559 | -10/Exiles | Opened EX-Vault 1565 | -10/Exiles | Found Trap Reconfigurator 1590 | -10/Exiles | Warned to stay clear of 0b10 Research branches 1628 | -10/Exiles | Met EX-DEC 1638 | -10/Exiles | Learned location of Zion (-7) 1812 | -10/Exiles | Visited The Gauntlet 1983 | -10/Exiles | Discovered new exit (range 10) 1994 | -10/Exiles | Left Exiles lab with Trap Reconfigurator 1994 | -10/Exiles | Entered Mines 2115 | -9/Mines | Received a Rocket Launcher from a helpful Derelict 2277 | -9/Mines | Joined a pair of Derelicts in attacking an 0b10 outpost 2291 | -9/Mines | Build established: Skirmisher 2344 | -9/Mines | Discovered new exit (range 12) 2388 | -9/Mines | Entered Materials 2388 | -8/Materials | Evolved 4 slots: Propulsion x2, Utility x2 2389 | -8/Materials | Loaded intel: 12 terminal locations 2624 | -8/Materials | Build established: Mutant 3868 | -8/Materials | Discovered new exit (range 9) 4419 | -8/Materials | Discovered new exit (range 16) 4686 | -8/Materials | Discovered new exit (range 16) 5105 | -8/Materials | Repaired Great Axe 5144 | -8/Materials | Repaired Carbon-fiber Leg 5198 | -8/Materials | Central database locked down 5305 | -8/Materials | Entered Factory 5305 | -7/Factory | Evolved 2 slots: Propulsion x1, Utility x1 5904 | -7/Factory | Cargo convoy interrupted 6228 | -7/Factory | Found Prototype Hackware 6228 | -7/Factory | Identified Exp. System Shield 6709 | -7/Factory | Build established: Hacker-Sprinter 7285 | -7/Factory | Identified exit to Lower Caves 7846 | -7/Factory | Repaired Broken Enh. Force Rifle 7885 | -7/Factory | Repaired Hrd. Medium Armor Plating 7976 | -7/Factory | Repaired Enh. Force Rifle 8038 | -7/Factory | Repaired Broken Adv. ECM Suite 8109 | -7/Factory | Repaired Cld. VTOL Module 8334 | -7/Factory | Fabricated Cld. VTOL Module? 8694 | -7/Factory | Entered Lower Caves 8770 | -7/Lower Caves | Spotted B-75 Beast 8816 | -7/Lower Caves | Encountered a Warlord checkpoint 8823 | -7/Lower Caves | Identified exit to Lower Caves 8884 | -7/Lower Caves | Entered another Lower Caves area 8905 | -7/Lower Caves | Learned Extension emergency access door positions 8905 | -7/Lower Caves | Learned Armory security intel 9036 | -7/Lower Caves | Discovered new exit (range 6) 9038 | -7/Lower Caves | Entered Zion 9059 | -7/Zion | Discovered new exit (range 16) 9139 | -7/Zion | Found CR-A16's Pointy Stick 9240 | -7/Zion | Learned 8 Factory zone layouts 9263 | -7/Zion | Learned location of Armory (-4) 9331 | -7/Zion | Rebuked by Imprinter 9362 | -7/Zion | Gained Derelict followers 9444 | -7/Zion | Build established: Hacker-Mutant 9470 | -7/Zion | Found Prototype Processor 9470 | -7/Zion | Identified Exp. Target Analyzer 9473 | -7/Zion | Found Prototype Processor 9473 | -7/Zion | Identified Exp. Melee Analysis Suite 9475 | -7/Zion | Found Prototype Processor 9475 | -7/Zion | Identified Exp. Terrain Scan Processor 9539 | -7/Zion | System corruption cleaned by Quarantine Array 9884 | -7/Zion | Entered Proximity Caves 9884 | -6/Proximity Caves | Accompanied by 6 allies 9903 | -6/Proximity Caves | Learned Factory garrison access intel 10142 | -6/Proximity Caves | Spotted B-75 Beast 10270 | -6/Proximity Caves | Discovered new exit (range 8) 10273 | -6/Proximity Caves | Attracted the attention of an 0b10 checkpoint 10286 | -6/Proximity Caves | Entered Factory 10286 | -6/Factory | Evolved 2 slots: Power x1, Propulsion x1 10287 | -6/Factory | Identified exit to Extension 10289 | -6/Factory | Loaded intel: 4 garrison access locations 10536 | -6/Factory | Discovered exit to Extension (range 12) 10586 | -6/Factory | Repaired Hrd. Medium Armor Plating 10813 | -6/Factory | Build established: Sprinter 11515 | -6/Factory | Discovered new exit (range 10) 11627 | -6/Factory | Garrison activated, responded to threat 11757 | -6/Factory | Discovered new exit (range 13) 11910 | -6/Factory | Fabricated Structural Scanner? 12040 | -6/Factory | Discovered new exit (range 8) 12127 | -6/Factory | Build established: Hacker-Sprinter 12267 | -6/Factory | Fabricated Imp. System Shield? 12403 | -6/Factory | Discovered new exit (range 15) 12594 | -6/Factory | Fabricated Imp. System Shield? 12719 | -6/Factory | Repaired Hrd. Medium Armor Plating 12736 | -6/Factory | First assault squad dispatched 12848 | -6/Factory | Entered Extension 12857 | -6/Extension | Disrupted transfer network 13074 | -6/Extension | Rescued a captive Derelict 13119 | -6/Extension | Energy Cycler disabled 13119 | -6/Extension | Rescued a captive Derelict 13119 | -6/Extension | Rescued a captive Derelict 13119 | -6/Extension | Rescued a captive Derelict 13119 | -6/Extension | Rescued a captive Derelict 13119 | -6/Extension | Rescued a captive Derelict 13120 | -6/Extension | Rescued a captive Derelict 13120 | -6/Extension | Rescued a captive Derelict 13120 | -6/Extension | Rescued a captive Derelict 13122 | -6/Extension | Rescued a captive Derelict 13122 | -6/Extension | Rescued a captive Derelict 13122 | -6/Extension | Rescued a captive Derelict 13123 | -6/Extension | Rescued a captive Derelict 13123 | -6/Extension | Rescued a captive Derelict 13123 | -6/Extension | Rescued a captive Derelict 13124 | -6/Extension | Rescued a captive Derelict 13125 | -6/Extension | Rescued a captive Derelict 13129 | -6/Extension | Rescued a captive Derelict 13130 | -6/Extension | Rescued a captive Derelict 13147 | -6/Extension | Rescued A7 13198 | -6/Extension | First assault squad dispatched 13209 | -6/Extension | Core integrity fell below 50% 13222 | -6/Extension | Spotted B-75 Beast 13226 | -6/Extension | Spotted B-75 Beast 13227 | -6/Extension | Discovered new exit (range 15) 13242 | -6/Extension | Core integrity fell below 20% 13243 | -6/Extension | Entered Factory 13243 | -5/Factory | Evolved 2 slots: Propulsion x1, Utility x1 13272 | -5/Factory | Lost 10 parts (2p3n3u2w) 13717 | -5/Factory | Build established: Scavenger-Mutant 13924 | -5/Factory | Fabricated Cld. VTOL Module? 13993 | -5/Factory | Repaired Broken Cld. Cesium-ion Thruster 14020 | -5/Factory | Repaired Med. Storage Unit 14101 | -5/Factory | Repaired Cld. VTOL Module 14152 | -5/Factory | Repaired Lgt. Fission Core 14640 | -5/Factory | Build established: Hacker-Mutant 15339 | -5/Factory | Lost 4 parts (1p3n) 16254 | -5/Factory | Repaired Mic. Fission Core? 16263 | -5/Factory | Spotted B-75 Beast 16399 | -5/Factory | Build established: Hacker-Sprinter 16621 | -5/Factory | Discovered new exit (range 9) 16706 | -5/Factory | Fabricated Cld. Cesium-ion Thruster? 16814 | -5/Factory | Fabricated Cld. Cesium-ion Thruster? 17011 | -5/Factory | Discovered new exit (range 5) 17144 | -5/Factory | Fabricated Lyr. Medium Armor Plating? 17443 | -5/Factory | First assault squad dispatched 17648 | -5/Factory | Build established: Hacker-Mutant 17845 | -5/Factory | Discovered new exit (range 7) 18049 | -5/Factory | Garrison activated, responded to threat 18078 | -5/Factory | Build established: Hacker-Sprinter 18197 | -5/Factory | Sucked down chute 18197 | -5/Factory | Entered Waste 18200 | -5/Waste | Spotted C-40 Crusher 18212 | -5/Waste | Spotted C-40 Crusher 18212 | -5/Waste | Spotted C-40 Crusher 18213 | -5/Waste | Spotted C-40 Crusher 18214 | -5/Waste | Crushed by Compactor (1 part destroyed, 1 dropped) 18219 | -5/Waste | Warlord forces began an assault 18225 | -5/Waste | Spotted C-40 Crusher 18230 | -5/Waste | Spotted C-40 Crusher 18232 | -5/Waste | Discovered new exit (range 16) 18322 | -5/Waste | Identified exit to Factory 18327 | -5/Waste | Entered Factory 18343 | -5/Factory | Identified exit to Upper Caves 18346 | -5/Factory | Lost 15 allies 18503 | -5/Factory | Destroyed 9 combat bots 18629 | -5/Factory | Fabricated Cld. Nuclear Pulse Thruster? 18720 | -5/Factory | Fabricated Cld. Nuclear Pulse Thruster? 18729 | -5/Factory | Discovered new exit (range 16) 18988 | -5/Factory | Discovered new exit (range 14) 19211 | -5/Factory | Fabricated Cld. Nuclear Pulse Thruster? 19347 | -5/Factory | Core integrity fell below 50% 19417 | -5/Factory | Build established: Hacker-Mutant 19422 | -5/Factory | High security lockdown imminent 19460 | -5/Factory | Destroyed 8 combat bots 19493 | -5/Factory | Entered Upper Caves 19543 | -5/Upper Caves | Learned Factory garrison access intel 19556 | -5/Upper Caves | Discovered new exit (range 15) 19580 | -5/Upper Caves | Entered another Upper Caves area 19582 | -5/Upper Caves | Learned Factory machine intel 19701 | -5/Upper Caves | Encountered a Warlord checkpoint 19702 | -5/Upper Caves | Discovered new exit (range 16) 19703 | -5/Upper Caves | Learned Factory security intel 19754 | -5/Upper Caves | Build established: Hacker-Sprinter 19756 | -5/Upper Caves | Entered Zhirov 19756 | -5/Zhirov | Discovered new exit (range 3) 19761 | -5/Zhirov | Met Zhirov 19767 | -5/Zhirov | Learned location of Quarantine (-3) 19767 | -5/Zhirov | Learned location of Testing (-2) 19767 | -5/Zhirov | Learned location of Command (-1) 19771 | -5/Zhirov | Zhirov requested help retrieving the SGEMP Prototype 19777 | -5/Zhirov | Found Alien Artifact 19777 | -5/Zhirov | Identified Integrated Dissipator 19777 | -5/Zhirov | Installed Integrated Dissipator, increased core heat dissipation (+20) 19799 | -5/Zhirov | Entered Proximity Caves 19861 | -4/Proximity Caves | Attracted the attention of an 0b10 base 20085 | -4/Proximity Caves | Spotter reported a threat 20126 | -4/Proximity Caves | Destroyed 7 combat bots 20174 | -4/Proximity Caves | Discovered new exit (range 12) 20178 | -4/Proximity Caves | Entered Factory 20178 | -4/Factory | Evolved 2 slots: Utility x2 20179 | -4/Factory | Identified exit to Research 20181 | -4/Factory | Loaded intel: 251 machine locations 20182 | -4/Factory | Loaded intel: 4 garrison access locations 20294 | -4/Factory | Repaired Cld. Cesium-ion Thruster 20383 | -4/Factory | Repaired Cld. Nuclear Pulse Thruster 20428 | -4/Factory | Search patrols dispatched 20537 | -4/Factory | Repaired Nuclear Pulse Array 20628 | -4/Factory | Repaired Hvy. Proton Missile Launcher 20715 | -4/Factory | Fabricated Adv. Trap Scanner? 20849 | -4/Factory | Found Exp. System Shield 20974 | -4/Factory | Search patrols dispatched 21269 | -4/Factory | Fabricated Cld. Nuclear Pulse Thruster? 21270 | -4/Factory | Discovered exit to Research (range 16) 21401 | -4/Factory | Build established: Wizard-Sprinter 21454 | -4/Factory | Discovered new exit (range 9) 21537 | -4/Factory | Fabricated Cld. Cesium-ion Thruster? 21540 | -4/Factory | Garrison activated, responded to threat 21678 | -4/Factory | First assault squad dispatched 21692 | -4/Factory | Garrison activated, responded to threat 21726 | -4/Factory | Destroyed 8 combat bots 21892 | -4/Factory | Destroyed 7 combat bots 21956 | -4/Factory | Fabricated Lyr. Medium Armor Plating? 22021 | -4/Factory | Destroyed 9 combat bots 22075 | -4/Factory | High security lockdown imminent 22090 | -4/Factory | Repaired Cld. Nuclear Pulse Thruster? 22135 | -4/Factory | Entered Upper Caves 22136 | -4/Upper Caves | Learned Research emergency access door positions 22143 | -4/Upper Caves | Attracted the attention of an 0b10 outpost 22187 | -4/Upper Caves | Spotted B-86 Titan 22231 | -4/Upper Caves | Discovered new exit (range 12) 22265 | -4/Upper Caves | Entered another Upper Caves area 22270 | -4/Upper Caves | Learned Research emergency access door positions 22300 | -4/Upper Caves | Attracted the attention of an 0b10 outpost 22306 | -4/Upper Caves | Discovered exit to Research (range 15) 22488 | -4/Upper Caves | Discovered new exit (range 13) 22496 | -4/Upper Caves | Entered Warlord 22507 | -4/Warlord | System corruption cleaned by Quarantine Array 22631 | -4/Warlord | Visited the Vortex Lab 22632 | -4/Warlord | Found Prototype Piercing Weapon 22632 | -4/Warlord | Identified Vortex Lance 22635 | -4/Warlord | Found Prototype Energy Gun 22640 | -4/Warlord | Identified Vortex Shotgun 22643 | -4/Warlord | Found Vortex Shotgun 22652 | -4/Warlord | Warlord's base attacked by MAIN.C 22657 | -4/Warlord | Found Vortex Lance 22807 | -4/Warlord | Spotted B-86 Titan 22812 | -4/Warlord | Destroyed B-86 Titan 22815 | -4/Warlord | Spotted B-90 Cyclops 22834 | -4/Warlord | Destroyed B-90 Cyclops 22996 | -4/Warlord | Spotted Striker 23002 | -4/Warlord | Warlord forces counterattacked 23039 | -4/Warlord | Lost 5 allies 23057 | -4/Warlord | Opened side exit 23097 | -4/Warlord | Met Warlord 23182 | -4/Warlord | Spotted Striker 23192 | -4/Warlord | Discovered new exit (range 14) 23220 | -4/Warlord | Lost 5 allies 23235 | -4/Warlord | Entered Proximity Caves 23237 | -3/Proximity Caves | Spotter reported a threat 23249 | -3/Proximity Caves | Attracted the attention of an 0b10 checkpoint 23289 | -3/Proximity Caves | Spotted B-86 Titan 23298 | -3/Proximity Caves | Discovered exit to Research (range 16) 23406 | -3/Proximity Caves | Ambushed by research squad 23456 | -3/Proximity Caves | Lost 3 parts (2n1u) 23554 | -3/Proximity Caves | Lost 3 parts (1n1u1w) 23568 | -3/Proximity Caves | Entered Research 23568 | -3/Research | Evolved 2 slots: Propulsion x1, Utility x1 23581 | -3/Research | Identified exit to Quarantine 23739 | -3/Research | Found Prototype Protection 23739 | -3/Research | Identified Centrium Heavy Armor Plating 23788 | -3/Research | Build established: Hacker-Sprinter 23826 | -3/Research | Repaired Field Propulsion Array 23892 | -3/Research | Discovered new exit (range 16) 23918 | -3/Research | Spotted B-86 Titan 23919 | -3/Research | Entered another Research area 23919 | -2/Research | Accompanied by 1 ally 23919 | -2/Research | Warlord forces began assault on 0b10 23919 | -2/Research | Evolved 2 slots: Utility x2 23979 | -2/Research | Identified exit to Testing 23979 | -2/Research | Identified exit to Access 23988 | -2/Research | Found Prototype Launcher 23988 | -2/Research | Identified Com. Tesla Bomb Launcher 23996 | -2/Research | Found Prototype Launcher 23996 | -2/Research | Identified Point Singularity Launcher 24011 | -2/Research | Spotted B-90 Cyclops 24019 | -2/Research | Found Prototype Processor 24019 | -2/Research | Identified Exp. Signal Interpreter 24029 | -2/Research | Research machine network offline 24106 | -2/Research | Met up with Warlord 24172 | -2/Research | Lost 3 allies 24246 | -2/Research | Borebot progress halted 24338 | -2/Research | Spotted Executioner 24355 | -2/Research | Borebot progress halted 24491 | -2/Research | Spotted Striker 24544 | -2/Research | Spotted Executioner 24544 | -2/Research | Spotted Executioner 24554 | -2/Research | Destroyed Executioner 24554 | -2/Research | Destroyed Executioner 24930 | -2/Research | Spotted Striker 24930 | -2/Research | Spotted Striker 24938 | -2/Research | Borebot progress halted 24970 | -2/Research | Lost 3 allies 25003 | -2/Research | Lost 3 parts (1n2u) 25017 | -2/Research | Entered Access 25017 | -1/Access | Evolved 2 slots: Propulsion x1, Utility x1 25204 | -1/Access | Identified exit to Surface 25226 | -1/Access | Lost 3 parts (1p1n1u) 25276 | *** | Escaped! Last Messages --------------- 25216_ Segregator Trap reprogrammed. 25234_ Acquired Prototype Flight Unit. 25234_ Identified Imp. Q-thruster. 25263_ Connecting with Repair Station... >>Force(Patch) PATCHED[Q-thruster] PATCHED[Diametric Drive] PATCHED[Diametric Drive] PATCHED[Med. Storage Unit] PATCHED[Q-thruster] 25263_ ALERT: Suspicious activity at Repair Station A003. Dispatching Investigation squad. 25264_ W-44 Eye distress signal alerts nearby ally. 25274_ Q-thruster destroyed. 25274_ Connecting with Terminal... >>Open(Door) Sealed Barrier opened. 25275_ The Access Shell folds into the floor. [Achievement: Epsilon Run] Map ----- +----------------------------------------------------+ | ?????????????????????????????????????????????????? | | ?????????????????????????????????????????????????? | | ?????????????????????????????????????????????????? | | ?????????????????????????????????????????????????? | | ?????????????????????????????????????????????????? | | ?????????????????????????????????????????????????? | | ?????????????????????????????????????????????????? | | ?????????????????????????????????????????????????? | | ?????????????????????????????????????????????????? | | ?????????????????????????????????????????????????? | | ?????????????????????????????????????????????????? | | ?????????????????????????????????????????????????? | | ?????????????????????????????????????????????????? | | ?????????????????????????????????????????????????? | | ?????????????????????BB????BB????????????????????? | | ?????????????????????BB????BB????????????????????? | | ?????????????????????????????????????????????????? | | ?????????????????????????????????????????????????? | | ?????????????????????????????????????????????????? | | ??##?????????????????????????????????????????????? | | ??# ???????????????#""""""""""#??????????????????? | | ??? "T?????????????# #??????????????????? | | ??? ""?????????????# #??????????????????? | | ??? ?????????????# #??????????????????? | | ???# ?????????????# "" #??????????????????? | | ???# #????????????# "@ #??????????????????? | | ???# #????????????# #??????????????????? | | ???+ #????????????# #??????????????????? | | ???# #????????????# #??????????????????? | | ???# #?###???????## ##?????????????????? | | ???# ###"####????# #?????????????????? | | ???+ #????##"" ##?????????????????? | | ???# #?????#"" #??????????????????? | | #####+##### #?????#"" #??????????????????? | | # #?????#T #??????????????????? | | ! # #?????#"" #??????????????????? | | # #?????#"" #??????????????????? | | # #######"" w #??????????????????? | | / p k g w ???????????? | | "" # k g ???????????? | | """ # ######################+#????????????? | | "R !# #???????????????????????????????????? | | """ # #???????????????????????????????????? | | "" # #???????????????????????????????????? | | = # #???????????????????????????????????? | | # #???????????????????????????????????? | | ########### ????????????????????????????????????? | | ??????????# ????????????????????????????????????? | | ??????????# ????????????????????????????????????? | | ??????????# ????????????????????????????????????? | +----------------------------------------------------+ Best States ------------- Heat Dissipation 91 Energy Generation 43 Energy Capacity 400 Matter Stores 300 Matter Capacity 300 Sight Range 20 Robot Scan Range 16 Terrain Scan Range 16 Terrain Scan Density 85 Jamming Range 14 Power Amplification 30 Additional Mass Support 12 Armor Coverage 750 Resistance: KI 20 Resistance: TH 20 Resistance: EX 20 Resistance: EM 40 Resistance: I 20 Resistance: S 20 Resistance: P 20 Propulsion Shielding 66 Evasion (%) 79 Targeting Accuracy 14 Target Analysis 12 Energy Filtering 50 Offensive Hacking 38 Defensive Hacking 30 Item Schematics ----------------- Imp. Flight Unit | -8/Materials | Hacked Cooling System | -8/Materials | Scanalyzed Structural Scanner | -8/Materials | Hacked System Shield | -8/Materials | Hacked Cld. VTOL Module | -7/Factory | Scanalyzed System Restoration Module | -7/Factory | Scanalyzed Enh. Force Rifle | -7/Factory | Scanalyzed Mic. Nuclear Core | -7/Factory | Scanalyzed Impact Mace | -7/Factory | Extracted Com. Battery | -7/Factory | Extracted Recalibrator | -7/Factory | Extracted Insulated Plating | -7/Factory | Extracted Recoil Stabilizer | -7/Factory | Extracted Matter Filter | -7/Factory | Extracted Hpw. Shotgun | -7/Factory | Extracted Energy Filter | -7/Factory | Extracted Com. Wheel | -7/Factory | Extracted Adv. Melee Analysis Suite | -7/Zion | Archive Adv. Assault Cannon | -7/Zion | Archive Lrn. Proton Cannon | -7/Zion | Archive Point Defense System | -7/Zion | Archive Adv. ECM Suite | -7/Zion | Archive Hvy. Flak Cannon | -7/Zion | Archive Imp. System Shield | -6/Factory | Hacked Med. Reactive Plating | -6/Factory | Extracted Cld. Plasma Cannon | -6/Factory | Extracted Nuclear Pulse Thruster | -6/Factory | Extracted Seismic Detector | -6/Factory | Extracted Imp. Hacking Suite | -6/Factory | Extracted Adv. Targeting Computer | -6/Factory | Extracted Huge Storage Unit | -6/Factory | Extracted Imp. Power Shielding | -6/Factory | Extracted Thermal Shield | -6/Factory | Extracted Cld. Cesium-ion Thruster | -5/Factory | Hacked Lyr. Medium Armor Plating | -5/Factory | Hacked Mic. Fission Core | -5/Factory | Hacked Cld. Nuclear Pulse Thruster | -5/Factory | Scanalyzed Adv. System Restoration Module | -5/Factory | Scanalyzed Coil Gun | -5/Factory | Extracted Assault Drone Bay | -5/Zhirov | Free Exp. Heat Sink | -5/Zhirov | Free Exp. Optical Array | -5/Zhirov | Free Imp. Arc Thrower | -5/Zhirov | Free Adv. Trap Scanner | -4/Factory | Hacked Hvy. Proton Missile Launcher | -4/Factory | Scanalyzed Imp. Recalibrator | -4/Factory | Scanalyzed Diametric Drive | -3/Research | Scanalyzed Imp. Quantum Reactor | -3/Research | Scanalyzed Robot Schematics ------------------ None Fabricated ------------ Cld. VTOL Module | x1 | -7/Factory Structural Scanner | x2 | -6/Factory Imp. System Shield | x1 | -6/Factory Imp. System Shield | x1 | -6/Factory Cld. VTOL Module | x1 | -5/Factory Cld. Cesium-ion Thruster | x1 | -5/Factory Cld. Cesium-ion Thruster | x1 | -5/Factory Lyr. Medium Armor Plating | x2 | -5/Factory Cld. Nuclear Pulse Thruster | x1 | -5/Factory Cld. Nuclear Pulse Thruster | x1 | -5/Factory Cld. Nuclear Pulse Thruster | x1 | -5/Factory Adv. Trap Scanner | x2 | -4/Factory Cld. Nuclear Pulse Thruster | x1 | -4/Factory Cld. Cesium-ion Thruster | x1 | -4/Factory Lyr. Medium Armor Plating | x2 | -4/Factory Alien Tech Used ----------------- Integrated Dissipator Achievements -------------- A Powerful Ally? All-out Warlord Charge!!! Epsilon Run Guerrilla Style Ooh, Shiny! Speed Demon Supersonic Challenges ------------ None Game ------ Seed ExpertCombatWarhead Manual? 0 Play Time 08:20:59 Cumulative 63.4 hours Start 2024.09.02 @ 05:46:58 End 2024.09.05 @ 05:37:02 Sessions 23 Manual Loads 0 Difficulty Adventurer Special Mode None Game No. 36 Rogue 0 Adventurer 36 Explorer 0 Win Type 0 Total 1 Types 1/0/0/0/0/0/0/0/0 Lore% 38 Gallery% 45 Achievement% 45 Wizard Run 0 Options --------- Layout 1 ASCII 0 Keyboard 0 Movement Numpad Keybinds 0 Fullscreen 1 Font 48/Smallcaps Map View 50x35 Zoom Use 0% Tactical HUD 1 Map Filters NONE Filters NONE Steam 1 RUN: 0ba5bb17-bf0d-4fef-aff6-21ebe9171a12